bitfinex/quotes_SOLUSD_20250410
["timestamp","ask_amount","ask_price","bid_price","bid_amount"]
[1744305031322,32.246,108.54,108.47,53.16751772]
[1744305031323,53.02535615,108.52,108.47,53.16751772]
[1744305031726,53.02535615,108.5,108.46,91.832]
[1744305031927,53.02535615,108.5,108.46,82.6121]
[1744305032093,53.02535615,108.5,108.46,0.14216157]
[1744305032289,62.24125615,108.51,108.47,53.02535615]
[1744305032522,9.2131,108.54,108.48,53.02535615]
[1744305032818,53.02535615,108.53,108.48,0.14216157]
[1744305033027,53.02535615,108.53,108.48,53.16751772]
[1744305033201,53.02535615,108.52,108.48,0.14216157]
[1744305033397,53.02535615,108.53,108.48,53.02535615]
[1744305033592,53.02535615,108.53,108.49,53.02535615]
[1744305033797,53.02535615,108.53,108.47,0.42648471]
[1744305033997,53.02535615,108.53,108.49,53.02535615]
[1744305034217,9.2131,108.54,108.5,53.02535615]
[1744305034419,24.0327,108.55,108.5,53.02535615]
[1744305034824,77.05805615,108.55,108.51,53.16751772]
[1744305035002,24.0324,108.55,108.52,53.02535615]
[1744305035498,14.82,108.55,108.51,53.02535615]
[1744305035821,24.0326,108.55,108.51,53.02535615]
[1744305036018,77.05795615,108.55,108.5,9.35806157]
[1744305036215,77.05795615,108.55,108.51,53.02535615]
[1744305036412,24.0326,108.55,108.51,53.02535615]
[1744305036795,24.0326,108.55,108.5,9.35806157]
[1744305036994,24.0326,108.55,108.5,143.38341772]
[1744305037218,14.82,108.55,108.51,53.02535615]
[1744305037611,11.27071764,108.63,108.54,53.16751772]
[1744305037821,53.02535615,108.6,108.55,53.02535615]
[1744305038004,9.2089,108.6,108.57,53.02535615]
[1744305038208,24.0477,108.61,108.57,53.02535615]
[1744305038412,53.02535615,108.59,108.55,0.14216157]
[1744305038819,53.02535615,108.59,108.54,62.23845615]
[1744305038820,53.02535615,108.58,108.54,0.14216157]
[1744305039121,53.02535615,108.57,108.52,62.38191772]
[1744305039296,53.02535615,108.57,108.53,53.02535615]
[1744305039502,53.02535615,108.6,108.52,9.35656157]
[1744305039503,47.0658,108.61,108.54,53.02535615]
[1744305039705,53.02535615,108.59,108.53,0.14216157]
[1744305039899,53.02535615,108.59,108.54,53.02535615]
[1744305040503,53.02535615,108.58,108.54,53.02535615]
[1744305040704,24.0477,108.61,108.57,53.02535615]
[1744305040905,9.2066,108.62,108.58,53.02535615]
[1744305041206,53.02535615,108.61,108.57,81.0]
[1744305041917,62.23315615,108.61,108.57,134.02535615]
[1744305042227,62.23315615,108.61,108.57,81.0]
[1744305042526,53.02535615,108.59,108.54,134.02535615]
[1744305042700,14.82,108.6,108.54,81.0]
[1744305043061,53.02535615,108.59,108.55,53.02535615]
[1744305043399,77.05415615,108.6,108.55,53.02535615]
[1744305043919,53.02535615,108.58,108.53,62.23895615]
[1744305044494,100.07365615,108.6,108.52,9.35656157]
[1744305044836,53.02535615,108.58,108.53,53.16751772]
[1744305045429,53.02535615,108.57,108.53,53.16751772]
[1744305045610,53.02535615,108.57,108.53,62.38131772]
[1744305045811,53.02535615,108.58,108.53,62.38131772]
[1744305046218,53.02535615,108.58,108.53,9.35596157]
[1744305046415,53.02535615,108.56,108.51,82.5519]
[1744305046732,32.2312,108.59,108.54,53.02535615]
[1744305046929,53.02535615,108.58,108.54,53.02535615]
[1744305047102,53.02535615,108.58,108.53,0.14216157]
[1744305047103,77.05385615,108.6,108.55,53.02535615]
[1744305047435,24.0285,108.6,108.56,53.02535615]
[1744305047605,24.0285,108.6,108.57,53.02535615]
[1744305047799,14.82,108.6,108.57,53.02535615]
[1744305048000,14.82,108.6,108.59,53.02535615]
[1744305048299,14.82,108.6,108.58,0.14216157]
[1744305048721,14.82,108.6,108.58,53.16751772]
[1744305049333,14.82,108.6,108.58,0.14216157]
[1744305049633,14.82,108.6,108.58,53.16751772]
[1744305049925,9.2067,108.62,108.58,9.35186157]
[1744305050107,9.2067,108.62,108.58,62.37721772]
[1744305050312,9.2063,108.63,108.59,53.02535615]
[1744305050629,53.02535615,108.62,108.58,81.14216157]
[1744305050830,9.2063,108.63,108.58,134.16751772]
[1744305051011,9.2051,108.64,108.58,90.35186157]
[1744305051330,9.2051,108.64,108.59,53.02535615]
[1744305051507,62.23045615,108.64,108.59,53.02535615]
[1744305051710,9.2051,108.64,108.6,53.16751772]
[1744305051909,53.02535615,108.63,108.56,9.2108]
[1744305052108,9.2051,108.64,108.57,0.14216157]
[1744305052321,53.02535615,108.62,108.57,53.16751772]
[1744305052519,53.02535615,108.6,108.56,0.14216157]
[1744305052718,32.2168,108.64,108.56,81.14216157]
[1744305052906,53.02535615,108.62,108.59,0.14216157]
[1744305053242,32.2168,108.64,108.59,0.14216157]
[1744305053416,53.02535615,108.62,108.59,0.14216157]
[1744305053734,9.2055,108.63,108.59,0.14216157]
[1744305053920,35.28098915,108.62,108.59,0.14216157]
[1744305054707,9.2055,108.63,108.59,0.14216157]
[1744305054919,35.28098915,108.62,108.59,0.14216157]
[1744305055242,9.2055,108.63,108.59,0.14216157]
[1744305055441,9.2055,108.63,108.59,44.63195072]
[1744305055738,44.48648915,108.63,108.59,0.14216157]
[1744305056107,9.2055,108.63,108.59,0.14216157]
[1744305056426,44.48648915,108.63,108.59,0.14216157]
[1744305056626,35.28098915,108.62,108.57,35.28098915]
[1744305056819,44.48648915,108.63,108.57,0.42648471]
[1744305057025,44.48648915,108.63,108.59,35.28098915]
[1744305057208,44.48648915,108.63,108.6,0.14216157]
[1744305058342,9.2055,108.63,108.6,0.14216157]
[1744305058639,44.48648915,108.63,108.6,0.14216157]
[1744305059517,44.48588915,108.64,108.6,0.14216157]
[1744305059719,35.28098915,108.63,108.6,0.14216157]
[1744305059933,44.48678915,108.63,108.6,0.14216157]
[1744305060442,44.48608915,108.64,108.6,0.14216157]
[1744305060612,35.28098915,108.63,108.6,0.14216157]
[1744305061010,44.48608915,108.64,108.6,44.63115072]
[1744305061219,14.82,108.65,108.62,35.28098915]
[1744305061443,0.063,108.66,108.64,35.42315072]
[1744305061639,0.063,108.66,108.65,35.42315072]
[1744305061938,0.063,108.66,108.65,161.19226301]
[1744305062141,0.063,108.67,108.66,0.42648471]
[1744305062441,0.063,108.68,108.66,35.70747386]
[1744305062614,0.063,108.68,108.67,35.70747386]
[1744305062937,0.063,108.68,108.67,135.35712272]
[1744305063147,0.063,108.73,108.69,0.42648471]
[1744305063331,0.063,108.73,108.7,35.42315072]
[1744305063636,0.063,108.73,108.72,54.35712272]
[1744305063839,9.2544,108.8,108.75,0.14216157]
[1744305064050,35.28098915,108.79,108.75,116.42315072]
[1744305064620,9.2544,108.8,108.75,116.42315072]
[1744305064824,44.53538915,108.8,108.75,116.42315072]
[1744305065118,0.063,108.8,108.78,35.28098915]
[1744305065330,0.063,108.8,108.77,35.28098915]
[1744305065646,0.063,108.8,108.77,0.14216157]
[1744305065813,0.063,108.8,108.77,35.42315072]
[1744305066147,35.34398915,108.8,108.75,81.0]
[1744305066329,35.28098915,108.78,108.75,0.14216157]
[1744305066531,35.28098915,108.77,108.76,28.30797946]
[1744305067150,35.28098915,108.77,108.72,81.0]
[1744305067444,35.28098915,108.76,108.72,0.14216157]
[1744305067944,35.28098915,108.74,108.72,0.14216157]
[1744305068318,35.28098915,108.73,108.72,0.14216157]
[1744305068524,35.28098915,108.73,108.68,116.28098915]
[1744305068842,35.28098915,108.7,108.67,14.20552072]
[1744305069154,67.46548915,108.75,108.7,0.14216157]
[1744305069329,35.28098915,108.73,108.7,0.14216157]
[1744305070041,35.28098915,108.74,108.7,35.42315072]
[1744305070244,35.28098915,108.74,108.7,0.14216157]
[1744305070446,35.28098915,108.73,108.7,0.14216157]
[1744305070622,35.28098915,108.74,108.7,0.14216157]
[1744305070823,35.28098915,108.74,108.7,35.42315072]
[1744305071049,35.28098915,108.72,108.69,0.14216157]
[1744305071246,44.47698915,108.75,108.66,10.7829]
[1744305071247,35.28098915,108.7,108.66,81.0]
[1744305071449,35.28098915,108.68,108.65,0.14216157]
[1744305071651,35.28098915,108.67,108.63,35.28098915]
[1744305071853,35.28098915,108.68,108.64,0.42648471]
[1744305072145,35.28098915,108.68,108.64,0.14216157]
[1744305072345,35.28098915,108.65,108.62,0.14216157]
[1744305072552,35.28098915,108.65,108.61,82.5409]
[1744305072847,32.2015,108.69,108.62,0.14216157]
[1744305072848,35.28098915,108.64,108.62,0.14216157]
[1744305073148,32.2015,108.69,108.62,0.14216157]
[1744305073349,35.28098915,108.66,108.62,35.42315072]
[1744305073650,9.2004,108.69,108.64,0.14216157]
[1744305073952,44.48508915,108.65,108.63,81.0]
[1744305074131,35.28098915,108.64,108.61,0.14216157]
[1744305074325,35.28098915,108.63,108.6,0.17216157]
[1744305074643,35.28098915,108.62,108.6,0.17216157]
[1744305075637,14.78,108.65,108.6,0.17216157]
[1744305075847,35.28098915,108.64,108.6,35.31098915]
[1744305076054,35.28098915,108.64,108.6,0.45648471]
[1744305076544,35.28098915,108.63,108.6,0.45648471]
[1744305076743,23.9841,108.65,108.6,0.45648471]
[1744305077040,35.28098915,108.64,108.61,0.14216157]
[1744305077627,14.78,108.65,108.61,0.28432314]
[1744305077847,14.78,108.65,108.62,0.14216157]
[1744305078156,35.28098915,108.7,108.65,0.14216157]
[1744305078157,9.2004,108.69,108.65,0.14216157]
[1744305078453,35.28098915,108.66,108.64,81.0]
[1744305078655,35.28098915,108.66,108.63,0.14216157]
[1744305079025,9.2004,108.69,108.63,35.70747386]
[1744305079232,35.28098915,108.67,108.63,81.42648471]
[1744305080144,35.28098915,108.67,108.63,116.70747386]
[1744305080453,35.28098915,108.68,108.64,0.14216157]
[1744305080649,35.28098915,108.68,108.64,35.42315072]
[1744305080847,35.28098915,108.68,108.64,0.14216157]
[1744305081322,35.28098915,108.68,108.64,35.42315072]
[1744305081953,14.8,108.7,108.66,35.28098915]
[1744305082255,14.8,108.7,108.66,81.14216157]
[1744305082453,14.8,108.7,108.66,81.0]
[1744305082454,35.28098915,108.69,108.66,81.0]
[1744305082749,35.28098915,108.68,108.66,81.0]
[1744305082929,59.28058915,108.7,108.66,81.0]
[1744305083450,35.28098915,108.69,108.66,81.0]
[1744305083660,35.28098915,108.67,108.64,0.14216157]
[1744305083836,59.28058915,108.7,108.64,0.14216157]
[1744305083837,82.27958915,108.7,108.64,0.14216157]
[1744305084033,82.27958915,108.7,108.64,35.42315072]
[1744305084034,35.28098915,108.69,108.64,35.42315072]
[1744305084342,35.28098915,108.67,108.63,35.28098915]
[1744305084545,44.48228915,108.68,108.63,35.28098915]
[1744305084741,35.28098915,108.67,108.63,0.14216157]
[1744305084952,9.2007,108.69,108.63,0.42648471]
[1744305085152,44.48168915,108.69,108.65,35.28098915]
[1744305085343,9.2007,108.69,108.65,35.28098915]
[1744305085660,35.28098915,108.71,108.67,35.28098915]
[1744305085860,9.1979,108.72,108.66,0.14216157]
[1744305086045,35.28098915,108.7,108.66,0.14216157]
[1744305086350,35.28098915,108.69,108.66,0.14216157]
[1744305086570,44.48098915,108.7,108.66,0.14216157]
[1744305086734,9.2,108.7,108.66,35.42315072]
[1744305086939,9.1991,108.71,108.68,0.14216157]
[1744305087466,9.2596,108.74,108.7,35.28098915]
[1744305087641,0.063,108.74,108.7,81.0]
[1744305087840,35.28098915,108.73,108.7,81.0]
[1744305088328,35.28098915,108.71,108.66,116.28098915]
[1744305088531,35.28098915,108.71,108.67,35.42315072]
[1744305088746,35.28098915,108.7,108.67,0.14216157]
[1744305089062,35.28098915,108.68,108.64,0.14216157]
[1744305089259,35.28098915,108.66,108.62,0.14216157]
[1744305089440,14.78,108.69,108.62,35.42315072]
[1744305089640,14.78,108.69,108.64,0.14216157]
[1744305089849,35.28098915,108.67,108.62,35.42315072]
[1744305090055,35.28098915,108.66,108.62,35.42315072]
[1744305090252,14.78,108.69,108.62,35.42315072]
[1744305090253,35.28098915,108.65,108.62,0.14216157]
[1744305090565,32.2046,108.68,108.61,81.0]
[1744305090566,35.28098915,108.64,108.61,0.14216157]
[1744305090935,35.28098915,108.65,108.61,0.14216157]
[1744305091438,52.89073718,108.65,108.61,53.03289875]
[1744305091636,52.89073718,108.67,108.63,0.14216157]
[1744305091849,52.89073718,108.66,108.63,0.14216157]
[1744305092251,62.09433718,108.66,108.63,0.14216157]
[1744305092942,52.89073718,108.65,108.62,81.0]
[1744305093143,52.89073718,108.65,108.61,134.31722189]
[1744305093366,9.2036,108.66,108.61,81.14216157]
[1744305093542,52.89073718,108.64,108.61,81.14216157]
[1744305094372,52.89073718,108.66,108.61,134.03289875]
[1744305094666,52.89073718,108.65,108.61,134.03289875]
[1744305095063,32.2046,108.68,108.61,134.03289875]
[1744305095263,52.89073718,108.64,108.6,0.17216157]
[1744305095442,32.2046,108.68,108.62,0.14216157]
[1744305095843,52.89073718,108.66,108.62,134.03289875]
[1744305096064,62.09203718,108.68,108.64,52.89073718]
[1744305096268,9.2013,108.68,108.64,52.89073718]
[1744305096661,62.09203718,108.68,108.65,0.14216157]
[1744305097077,52.89073718,108.67,108.64,81.0]
[1744305097748,62.09203718,108.68,108.64,81.0]
[1744305098090,62.09203718,108.68,108.65,0.14216157]
[1744305100282,52.89073718,108.64,108.6,0.17216157]
[1744305100467,62.09613718,108.64,108.6,0.17216157]
[1744305100988,52.89073718,108.63,108.6,0.17216157]
[1744305101168,62.09613718,108.64,108.6,53.06289875]
[1744305101485,62.09613718,108.64,108.6,0.17216157]
[1744305102379,52.89073718,108.63,108.6,0.03]
[1744305103386,52.89073718,108.64,108.61,0.14216157]
[1744305104268,32.2086,108.67,108.61,0.14216157]
[1744305105082,52.89073718,108.65,108.61,0.14216157]
[1744305105482,9.2021,108.67,108.63,0.14216157]
[1744305105659,9.2021,108.67,108.63,52.89073718]
[1744305105859,67.67073718,108.69,108.65,0.28432314]
[1744305106060,14.78,108.69,108.67,53.03289875]
[1744305106494,14.78,108.69,108.67,0.14216157]
[1744305107090,62.09033718,108.7,108.67,0.14216157]
[1744305107278,62.08773718,108.73,108.68,52.89073718]
[1744305107660,52.89073718,108.72,108.66,0.42648471]
[1744305107866,9.197,108.73,108.64,0.14216157]
[1744305107867,52.89073718,108.68,108.64,0.14216157]
[1744305108069,52.89073718,108.66,108.61,0.14216157]
[1744305108282,52.89073718,108.66,108.61,53.03289875]
[1744305108482,52.89073718,108.66,108.61,0.42648471]
[1744305108792,52.89073718,108.66,108.61,53.03289875]
[1744305109081,52.89073718,108.64,108.61,0.14216157]
[1744305109280,52.89073718,108.63,108.6,81.03]
[1744305109585,52.89073718,108.63,108.6,0.03]
[1744305110462,62.09733718,108.62,108.6,0.03]
[1744305111683,52.89073718,108.61,108.6,0.03]
[1744305112374,105.78147436,108.61,108.6,0.03]
[1744305112578,23.0151,108.63,108.6,0.03]
[1744305112784,9.2064,108.62,108.6,0.03]
[1744305112978,67.67073718,108.61,108.6,0.03]
[1744305113159,139.21112322,108.61,108.6,0.03]
[1744305113365,86.32038604,108.61,108.6,0.03]
[1744305113782,26.0,108.59,108.56,0.03]
[1744305113983,145.65014636,108.61,108.56,0.03]
[1744305113984,35.32687623,108.57,108.56,0.03]
[1744305114569,44.53747623,108.57,108.56,0.03]
[1744305116168,63.18712509,108.57,108.56,0.03]
[1744305117377,44.53747623,108.57,108.56,0.03]
[1744305118597,63.18712509,108.57,108.56,0.03]
[1744305119679,18.64964886,108.56,108.52,0.03]
[1744305119876,35.32687623,108.53,108.52,0.03]
[1744305120492,23.9928,108.55,108.52,0.03]
[1744305120792,35.32687623,108.53,108.52,0.03]
[1744305121173,23.9928,108.55,108.52,0.03]
[1744305121388,35.32687623,108.54,108.52,0.03]
[1744305121594,59.31967623,108.55,108.52,0.03]
[1744305121777,35.32687623,108.54,108.52,0.03]
[1744305122276,44.54057623,108.54,108.52,0.03]
[1744305122497,35.32687623,108.53,108.52,0.03]
[1744305122669,53.97652509,108.53,108.52,0.03]
[1744305123197,35.32687623,108.53,108.52,0.03]
[1744305123981,53.97652509,108.53,108.52,0.03]
[1744305124190,63.19052509,108.53,108.52,0.03]
[1744305125397,44.54087623,108.53,108.52,0.03]
[1744305126081,9.214,108.53,108.52,0.03]
[1744305126279,44.54047623,108.54,108.52,0.03]
[1744305127201,37.8112,108.55,108.52,0.03]
[1744305127202,14.78,108.55,108.52,0.03]
[1744305127705,14.78,108.55,108.54,35.32687623]
[1744305127997,14.78,108.55,108.52,81.03]
[1744305128302,59.31917623,108.55,108.52,81.03]
[1744305128892,14.78,108.55,108.52,116.35687623]
[1744305129209,14.78,108.55,108.54,35.32687623]
[1744305129509,44.53697623,108.58,108.53,35.4690378]
[1744305129703,35.32687623,108.6,108.53,81.0]
[1744305129704,9.2081,108.6,108.53,81.0]
[1744305129908,35.32687623,108.58,108.54,35.32687623]
[1744305130212,9.2081,108.6,108.56,35.32687623]
[1744305130505,44.59747623,108.61,108.56,35.32687623]
[1744305130678,44.59747623,108.61,108.57,35.32687623]
[1744305131301,9.2706,108.61,108.58,35.32687623]
[1744305131505,9.2703,108.61,108.58,35.32687623]
[1744305131696,9.2703,108.61,108.56,1.71046157]
[1744305131893,44.59717623,108.61,108.56,1.71046157]
[1744305132203,44.53657623,108.58,108.53,81.0]
[1744305132384,35.32687623,108.56,108.52,36.93987623]
[1744305132585,35.32687623,108.57,108.53,35.4690378]
[1744305132789,35.32687623,108.57,108.53,35.32687623]
[1744305132988,35.32687623,108.56,108.52,36.93987623]
[1744305133806,9.2097,108.58,108.54,35.4690378]
[1744305134198,59.29567623,108.6,108.56,35.32687623]
[1744305134601,35.32687623,108.59,108.55,35.32687623]
[1744305134997,35.32687623,108.56,108.52,0.03]
[1744305135313,35.32687623,108.53,108.52,0.03]
[1744305135815,35.32687623,108.53,108.52,0.0001]
[1744305136123,35.32687623,108.53,108.34,7.37079365]
[1744305136124,6.7438,108.39,108.34,7.37079365]
[1744305136405,35.32687623,108.39,108.33,35.32696903]
[1744305136612,6.3415,108.54,108.33,9.28e-05]
[1744305136788,35.32687623,108.5,108.34,32.75578614]
[1744305136985,35.32687623,108.42,108.34,9.59768471]
[1744305137191,35.32687623,108.5,108.34,9.59768471]
[1744305137482,35.32687623,108.45,108.33,35.32687623]
[1744305137683,53.15909177,108.36,108.32,1.5839]
[1744305137889,53.15909177,108.4,108.32,1.5839]
[1744305138084,53.15909177,108.4,108.32,54.74299177]
[1744305138295,53.15909177,108.41,108.35,53.15909177]
[1744305138491,9.2216,108.44,108.37,53.15909177]
[1744305138704,53.15909177,108.42,108.36,53.15909177]
[1744305138890,53.15909177,108.41,108.36,53.15909177]
[1744305139082,9.221,108.45,108.38,53.15909177]
[1744305139285,53.15909177,108.44,108.38,53.15909177]
[1744305139485,23.0497,108.47,108.35,53.15909177]
[1744305139486,9.2197,108.47,108.41,53.15909177]
[1744305139682,62.37879177,108.47,108.36,0.5]
[1744305139985,53.15909177,108.44,108.39,53.15909177]
[1744305140584,9.2182,108.48,108.42,53.15909177]
[1744305141109,9.2148,108.52,108.41,14.76]
[1744305141308,53.15909177,108.51,108.46,53.15909177]
[1744305141618,53.15909177,108.52,108.47,53.15909177]
[1744305142005,53.15909177,108.51,108.46,53.15909177]
[1744305142212,0.063,108.55,108.5,106.31818354]
[1744305142517,0.063,108.55,108.5,53.15909177]
[1744305142710,0.063,108.55,108.53,53.15909177]
[1744305142920,0.063,108.55,108.49,9.2171]
[1744305143216,0.063,108.55,108.53,53.15909177]
[1744305143596,0.063,108.55,108.54,53.15909177]
[1744305144790,0.063,108.55,108.54,62.37219177]
[1744305144990,0.063,108.55,108.54,115.53128354]
[1744305145615,0.063,108.61,108.54,115.53128354]
[1744305145804,0.063,108.61,108.6,53.15909177]
[1744305146217,0.063,108.61,108.6,106.46034511]
[1744305146419,0.063,108.61,108.6,53.30125334]
[1744305146718,0.063,108.61,108.6,106.46034511]
[1744305146919,0.063,108.61,108.6,115.66844511]
[1744305147124,0.063,108.61,108.6,115.95276825]
[1744305148112,0.063,108.67,108.61,19.07613357]
[1744305148322,0.063,108.67,108.66,53.30125334]
[1744305148495,0.063,108.67,108.66,62.78857648]
[1744305148825,0.063,108.67,108.66,81.43822534]
[1744305149618,0.063,108.74,108.67,0.42648471]
[1744305149821,0.063,108.74,108.72,53.15909177]
[1744305150319,0.063,108.74,108.73,53.15909177]
[1744305150521,0.063,108.74,108.73,53.30125334]
[1744305150695,0.063,108.74,108.73,0.14216157]
[1744305150893,0.063,108.74,108.73,53.58557648]
[1744305151521,0.063,108.74,108.7,85.35769177]
[1744305151695,0.063,108.74,108.71,53.30125334]
[1744305151896,0.063,108.72,108.71,0.42648471]
[1744305152095,0.063,108.72,108.71,72.23522534]
[1744305152293,0.063,108.72,108.71,81.43392534]
[1744305153221,0.063,108.74,108.73,0.14216157]
[1744305153400,0.063,108.74,108.73,53.58557648]
[1744305153602,0.063,108.74,108.73,72.23522534]
[1744305154225,0.063,108.74,108.73,125.39431711]
[1744305154398,0.063,108.78,108.74,0.42648471]
[1744305154605,0.063,108.78,108.77,0.14216157]
[1744305154828,0.063,108.78,108.77,53.30125334]
[1744305155516,0.063,108.78,108.77,53.58557648]
[1744305155703,0.063,108.78,108.77,72.23522534]
[1744305156229,0.063,108.78,108.77,81.83291005]
[1744305156404,0.063,108.78,108.77,37.86751828]
[1744305156605,0.063,108.78,108.77,91.02661005]
[1744305156816,0.063,108.8,108.78,0.42648471]
[1744305157026,0.063,108.8,108.79,71.9509022]
[1744305157533,0.063,108.8,108.79,125.39431711]
[1744305158003,0.063,108.81,108.8,19.07613357]
[1744305158204,0.063,108.82,108.8,134.99200182]
[1744305158403,0.063,108.82,108.81,72.23522534]
[1744305158609,0.063,108.82,108.81,81.42552534]
[1744305158822,0.063,108.82,108.81,62.77587648]
[1744305160498,0.063,108.82,108.81,91.02321005]
[1744305161128,0.063,108.83,108.82,19.07613357]
[1744305161329,0.063,108.83,108.82,81.83291005]
[1744305161826,0.063,108.83,108.82,91.02231005]
[1744305163223,0.063,108.83,108.82,62.89893805]
[1744305163736,0.063,108.83,108.82,53.15909177]
[1744305163911,0.063,108.83,108.82,53.44341491]
[1744305164105,0.063,108.83,108.82,53.15909177]
[1744305164306,0.063,108.83,108.81,0.28432314]
[1744305164528,0.063,108.83,108.81,53.44341491]
[1744305164723,0.063,108.83,108.82,53.30125334]
[1744305165107,0.063,108.83,108.82,21.38562388]
[1744305165527,0.063,108.83,108.82,30.85934702]
[1744305166828,0.063,108.83,108.82,59.10668059]
[1744305167021,0.063,108.83,108.82,37.86321828]
[1744305167220,0.063,108.83,108.82,91.02231005]
[1744305169235,0.063,108.86,108.82,91.02231005]
[1744305169236,0.063,108.86,108.83,19.07613357]
[1744305169443,0.063,108.86,108.85,125.39431711]
[1744305169734,0.063,108.86,108.85,72.23522534]
[1744305169938,0.063,108.86,108.85,134.99200182]
[1744305170822,0.063,108.86,108.85,144.17890182]
[1744305172839,0.063,108.86,108.85,91.01981005]
[1744305173418,0.063,108.86,108.85,144.17890182]
[1744305175523,0.063,108.87,108.86,19.07613357]
[1744305175726,0.063,108.87,108.86,81.83291005]
[1744305177035,0.063,108.87,108.86,81.54858691]
[1744305177235,0.063,108.87,108.86,91.01901005]
[1744305177444,0.063,108.87,108.86,9.88200785]
[1744305177652,0.063,108.87,108.86,9.73984628]
[1744305177950,0.063,108.87,108.86,72.36936119]
[1744305178121,0.063,108.87,108.86,63.18326119]
[1744305178321,0.063,108.87,108.86,91.01901005]
[1744305180136,0.063,108.87,108.86,81.83291005]
[1744305180341,0.063,108.87,108.82,9.59768471]
[1744305180537,0.063,108.87,108.85,0.14216157]
[1744305180729,53.22209177,108.87,108.84,0.14216157]
[1744305180935,53.22209177,108.87,108.83,0.14216157]
[1744305181143,53.22209177,108.87,108.83,53.30125334]
[1744305181330,9.2484,108.87,108.83,0.14216157]
[1744305181647,9.2484,108.87,108.86,0.14216157]
[1744305181648,0.063,108.87,108.86,0.14216157]
[1744305181945,0.063,108.87,108.86,53.30125334]
[1744305182444,0.063,108.87,108.86,81.83291005]
[1744305183327,0.063,108.87,108.86,91.01901005]
[1744305184448,0.063,108.89,108.87,19.07613357]
[1744305184630,0.063,108.89,108.88,53.58557648]
[1744305184834,0.063,108.89,108.88,63.18326119]
[1744305185352,0.063,108.89,108.88,9.73984628]
[1744305185663,0.063,108.89,108.87,53.15909177]
[1744305186154,0.063,108.89,108.86,0.14216157]
[1744305186328,53.22209177,108.89,108.84,53.15909177]
[1744305186528,53.15909177,108.88,108.85,0.14216157]
[1744305186722,0.063,108.89,108.88,9.73984628]
[1744305186945,0.063,108.91,108.9,0.14216157]
[1744305187258,0.063,108.91,108.9,144.17470182]
[1744305187448,0.063,108.91,108.9,91.01561005]
[1744305187626,0.063,108.91,108.9,19.20686942]
[1744305187828,0.063,108.91,108.9,10.02416942]
[1744305188131,0.063,108.91,108.9,72.36596119]
[1744305188432,0.063,108.91,108.9,63.18326119]
[1744305189047,0.063,108.91,108.9,63.04109962]
[1744305189344,0.063,108.91,108.89,0.14216157]
[1744305189551,53.22209177,108.91,108.89,0.14216157]
[1744305189846,0.063,108.91,108.88,53.15909177]
[1744305190048,0.063,108.91,108.9,53.44341491]
[1744305190362,0.063,108.91,108.9,0.42648471]
[1744305190528,0.063,108.91,108.9,0.14216157]
[1744305191245,0.063,108.91,108.88,9.46872314]
[1744305191246,9.2448,108.91,108.88,0.14216157]
[1744305191438,62.40389177,108.91,108.88,0.14216157]
[1744305191633,62.40389177,108.91,108.85,53.15909177]
[1744305191634,53.15909177,108.89,108.85,53.15909177]
[1744305191859,53.15909177,108.88,108.85,0.14216157]
[1744305192028,53.15909177,108.88,108.84,53.15909177]
[1744305192029,53.15909177,108.87,108.83,0.14216157]
[1744305192354,71.80874063,108.9,108.83,0.28432314]
[1744305192527,53.15909177,108.86,108.83,0.14216157]
[1744305192854,71.80874063,108.9,108.83,0.42648471]
[1744305193057,79.6405,108.91,108.85,0.14216157]
[1744305193245,53.15909177,108.88,108.85,0.14216157]
[1744305193447,62.34379177,108.88,108.85,0.14216157]
[1744305194057,53.15909177,108.87,108.85,0.14216157]
[1744305194252,53.15909177,108.87,108.82,62.75677648]
[1744305194457,53.15909177,108.87,108.83,53.15909177]
[1744305194832,53.15909177,108.87,108.83,0.28432314]
[1744305195031,53.15909177,108.87,108.83,53.44341491]
[1744305195560,62.34479177,108.87,108.83,53.44341491]
[1744305196055,62.34479177,108.87,108.83,0.28432314]
[1744305196264,62.34479177,108.87,108.83,0.42648471]
[1744305196433,62.34479177,108.87,108.83,53.58557648]
[1744305196635,9.1846,108.88,108.85,21.24809393]
[1744305196929,9.1846,108.88,108.84,53.15909177]
[1744305197133,3.39351505,108.87,108.84,53.15909177]
[1744305197330,3.39351505,108.87,108.86,53.58557648]
[1744305197560,3.39351505,108.87,108.86,0.42648471]